[Event "Early-Titled-Tuesday-Blitz-July-09-2024"]
[Site "Chess.com"]
[Date "2024.07.09"]
[Round "2"]
[White "MeisterJabo"]
[Black "Rud_Makarian"]
[Result "0-1"]
[WhiteElo "2420"]
[BlackElo "3001"]
[TimeControl "180+1"]
[EndTime "8:17:00 PDT"]
[Termination "Rud_Makarian won by checkmate"]

1. e4 {[%clk 0:03:00.9]} 1... c5 {[%clk 0:02:59.5]} 2. Nf3 {[%clk 0:02:46.9]}
2... d6 {[%clk 0:03:00.4]} 3. c3 {[%clk 0:02:42.6]} 3... Nf6 {[%clk 0:02:56.1]}
4. Be2 {[%clk 0:02:41]} 4... g6 {[%clk 0:02:55]} 5. O-O {[%clk 0:02:40.7]} 5...
Bg7 {[%clk 0:02:55.9]} 6. Re1 {[%clk 0:02:38.5]} 6... O-O {[%clk 0:02:54.4]} 7.
Bf1 {[%clk 0:02:38.5]} 7... e5 {[%clk 0:02:54.9]} 8. d4 {[%clk 0:02:36.8]} 8...
Nc6 {[%clk 0:02:53.3]} 9. d5 {[%clk 0:02:27.8]} 9... Ne7 {[%clk 0:02:52.1]} 10.
c4 {[%clk 0:02:19.6]} 10... Kh8 {[%clk 0:02:47.5]} 11. Nc3 {[%clk 0:02:19.1]}
11... Nfg8 {[%clk 0:02:47.5]} 12. g3 {[%clk 0:01:53.3]} 12... Bh6 {[%clk
0:02:43.3]} 13. Bg2 {[%clk 0:01:52.7]} 13... Kg7 {[%clk 0:02:41.6]} 14. Be3
{[%clk 0:01:48.6]} 14... f5 {[%clk 0:02:30.6]} 15. exf5 {[%clk 0:01:31.9]} 15...
Nxf5 {[%clk 0:02:28.9]} 16. Bxh6+ {[%clk 0:01:30.7]} 16... Ngxh6 {[%clk
0:02:29.8]} 17. Ne4 {[%clk 0:01:25.5]} 17... Ng4 {[%clk 0:02:26.1]} 18. h3
{[%clk 0:01:23.1]} 18... Nf6 {[%clk 0:02:26.3]} 19. Nfg5 {[%clk 0:01:22.3]}
19... Nxe4 {[%clk 0:02:23.5]} 20. Nxe4 {[%clk 0:01:23.2]} 20... Nd4 {[%clk
0:02:23.3]} 21. Re3 {[%clk 0:01:13.3]} 21... Bf5 {[%clk 0:02:19.6]} 22. b4
{[%clk 0:00:56.9]} 22... Bxe4 {[%clk 0:02:17.3]} 23. Rxe4 {[%clk 0:00:57.3]}
23... Qf6 {[%clk 0:02:16.1]} 24. Qd2 {[%clk 0:00:53.2]} 24... b6 {[%clk
0:02:14.9]} 25. Rf1 {[%clk 0:00:52.4]} 25... Rae8 {[%clk 0:02:11.7]} 26. f4
{[%clk 0:00:50.9]} 26... exf4 {[%clk 0:02:12]} 27. Rfxf4 {[%clk 0:00:49.4]}
27... Qd8 {[%clk 0:02:10.2]} 28. Rxd4 {[%clk 0:00:29.2]} 28... cxd4 {[%clk
0:02:08.7]} 29. Qxd4+ {[%clk 0:00:30.1]} 29... Kg8 {[%clk 0:02:07.1]} 30. c5
{[%clk 0:00:30]} 30... Rxf4 {[%clk 0:02:06.4]} 31. Qxf4 {[%clk 0:00:27]} 31...
bxc5 {[%clk 0:02:06.6]} 32. bxc5 {[%clk 0:00:27.9]} 32... Rf8 {[%clk 0:01:51.2]}
33. Qc4 {[%clk 0:00:13.7]} 33... dxc5 {[%clk 0:01:49.1]} 34. d6+ {[%clk
0:00:13.7]} 34... Kg7 {[%clk 0:01:48.6]} 35. Qxc5 {[%clk 0:00:13.9]} 35... Qb6
{[%clk 0:01:41.6]} 36. Qxb6 {[%clk 0:00:14.2]} 36... axb6 {[%clk 0:01:42.3]} 37.
d7 {[%clk 0:00:15.1]} 37... Kf6 {[%clk 0:01:42.2]} 38. Bc6 {[%clk 0:00:13.2]}
38... Ke7 {[%clk 0:01:43.1]} 39. a4 {[%clk 0:00:12.6]} 39... Rf5 {[%clk
0:01:37.9]} 40. Kg2 {[%clk 0:00:11.9]} 40... Rc5 {[%clk 0:01:27.5]} 41. Bb5
{[%clk 0:00:11.9]} 41... Rxb5 {[%clk 0:01:27.7]} 42. axb5 {[%clk 0:00:12.8]}
42... Kxd7 {[%clk 0:01:28.6]} 43. Kf3 {[%clk 0:00:13.1]} 43... Kd6 {[%clk
0:01:29.5]} 44. Kf4 {[%clk 0:00:13.4]} 44... Kc5 {[%clk 0:01:23.1]} 45. Kg5
{[%clk 0:00:13.5]} 45... Kxb5 {[%clk 0:01:23.8]} 46. Kh6 {[%clk 0:00:14.2]}
46... Kc6 {[%clk 0:01:24.2]} 47. Kxh7 {[%clk 0:00:14.8]} 47... b5 {[%clk
0:01:24.8]} 48. Kxg6 {[%clk 0:00:15.4]} 48... b4 {[%clk 0:01:25.7]} 49. h4
{[%clk 0:00:16.1]} 49... b3 {[%clk 0:01:26.6]} 50. h5 {[%clk 0:00:16.8]} 50...
b2 {[%clk 0:01:27.5]} 51. h6 {[%clk 0:00:15.5]} 51... b1=Q+ {[%clk 0:01:28.4]}
52. Kg7 {[%clk 0:00:15.1]} 52... Qb2+ {[%clk 0:01:29.3]} 53. Kg8 {[%clk
0:00:11.2]} 53... Qf6 {[%clk 0:01:29.6]} 54. h7 {[%clk 0:00:10.3]} 54... Qg6+
{[%clk 0:01:29.3]} 55. Kh8 {[%clk 0:00:08.8]} 55... Qf7 {[%clk 0:01:29.7]} 56.
g4 {[%clk 0:00:08.6]} 56... Qf8# {[%clk 0:01:30.6]} 0-1

[Event "Early-Titled-Tuesday-Blitz-July-09-2024"]
[Site "Chess.com"]
[Date "2024.07.09"]
[Round "2"]
[White "mouseslips_are_the_best"]
[Black "krucki03"]
[Result "0-1"]
[WhiteElo "2312"]
[BlackElo "2518"]
[TimeControl "180+1"]
[EndTime "8:17:00 PDT"]
[Termination "krucki03 won by resignation"]

1. e4 {[%clk 0:03:00.9]} 1... d5 {[%clk 0:02:58.6]} 2. exd5 {[%clk 0:03:00.6]}
2... Nf6 {[%clk 0:02:58.5]} 3. Nf3 {[%clk 0:03:01.2]} 3... Nxd5 {[%clk 0:02:57]}
4. d4 {[%clk 0:03:00.2]} 4... g6 {[%clk 0:02:55.9]} 5. c4 {[%clk 0:02:58.5]}
5... Nf6 {[%clk 0:02:55.7]} 6. Nc3 {[%clk 0:02:57.2]} 6... Bg7 {[%clk
0:02:56.4]} 7. Be2 {[%clk 0:02:57]} 7... O-O {[%clk 0:02:57]} 8. O-O {[%clk
0:02:57.3]} 8... b6 {[%clk 0:02:53.3]} 9. h3 {[%clk 0:02:48.2]} 9... e6 {[%clk
0:02:52.5]} 10. Bg5 {[%clk 0:02:44.5]} 10... Bb7 {[%clk 0:02:52]} 11. Qd2 {[%clk
0:02:43.2]} 11... Nbd7 {[%clk 0:02:41.4]} 12. Rad1 {[%clk 0:02:42.2]} 12... a6
{[%clk 0:02:36.6]} 13. Qf4 {[%clk 0:02:32.9]} 13... Qc8 {[%clk 0:02:29.6]} 14.
d5 {[%clk 0:02:13.2]} 14... e5 {[%clk 0:02:10]} 15. Qh4 {[%clk 0:02:00.8]} 15...
Re8 {[%clk 0:01:52.6]} 16. Bh6 {[%clk 0:01:57.3]} 16... Bh8 {[%clk 0:01:52.1]}
17. Rfe1 {[%clk 0:01:37.3]} 17... a5 {[%clk 0:01:43.9]} 18. Bf1 {[%clk
0:01:31.4]} 18... a4 {[%clk 0:01:26.5]} 19. a3 {[%clk 0:01:30.4]} 19... e4
{[%clk 0:01:18.2]} 20. Nd4 {[%clk 0:01:16]} 20... Nc5 {[%clk 0:01:16.7]} 21. Bg5
{[%clk 0:01:08.9]} 21... Nfd7 {[%clk 0:00:32.4]} 22. Nxe4 {[%clk 0:01:02]} 22...
Bxd4 {[%clk 0:00:27.6]} 23. Rxd4 {[%clk 0:01:00.1]} 23... f5 {[%clk 0:00:27.1]}
24. Nxc5 {[%clk 0:00:22]} 24... Rxe1 {[%clk 0:00:23.4]} 25. Ne6 {[%clk
0:00:22.3]} 25... Nf8 {[%clk 0:00:18]} 26. Nxf8 {[%clk 0:00:17.9]} 26... Qxf8
{[%clk 0:00:18.9]} 27. f3 {[%clk 0:00:16.6]} 27... Rae8 {[%clk 0:00:18.8]} 28.
Bh6 {[%clk 0:00:16.4]} 28... Qc5 {[%clk 0:00:17.9]} 29. Qf2 {[%clk 0:00:14.4]}
29... R1e7 {[%clk 0:00:16.5]} 30. Bd2 {[%clk 0:00:14.7]} 30... Rf7 {[%clk
0:00:14.9]} 31. Bc3 {[%clk 0:00:15.1]} 31... Qd6 {[%clk 0:00:14.9]} 32. Kh1
{[%clk 0:00:15.1]} 32... Qe7 {[%clk 0:00:15.2]} 33. Qg3 {[%clk 0:00:14.8]} 33...
Qe5 {[%clk 0:00:15.1]} 34. Rh4 {[%clk 0:00:15.2]} 34... Qxg3 {[%clk 0:00:15]}
0-1

[Event "Early-Titled-Tuesday-Blitz-July-09-2024"]
[Site "Chess.com"]
[Date "2024.07.09"]
[Round "2"]
[White "albi1999"]
[Black "Andreikka"]
[Result "0-1"]
[WhiteElo "2658"]
[BlackElo "3007"]
[TimeControl "180+1"]
[EndTime "8:17:03 PDT"]
[Termination "Andreikka won by resignation"]

1. d4 {[%clk 0:03:00.9]} 1... Nf6 {[%clk 0:02:58.9]} 2. c4 {[%clk 0:03:00.1]}
2... e6 {[%clk 0:02:58.6]} 3. Nf3 {[%clk 0:02:59.4]} 3... d5 {[%clk 0:02:53.1]}
4. g3 {[%clk 0:02:58.6]} 4... Be7 {[%clk 0:02:51.7]} 5. Bg2 {[%clk 0:02:58.6]}
5... O-O {[%clk 0:02:51.5]} 6. Nc3 {[%clk 0:02:54.9]} 6... c6 {[%clk 0:02:42.6]}
7. O-O {[%clk 0:02:54.4]} 7... b6 {[%clk 0:02:38.5]} 8. Nd2 {[%clk 0:02:46.4]}
8... Bb7 {[%clk 0:02:32.9]} 9. e4 {[%clk 0:02:43]} 9... c5 {[%clk 0:02:21.7]}
10. exd5 {[%clk 0:02:19.7]} 10... cxd4 {[%clk 0:02:18.1]} 11. Nb5 {[%clk
0:02:07.3]} 11... exd5 {[%clk 0:02:17.2]} 12. Nxd4 {[%clk 0:02:01.8]} 12... Qc8
{[%clk 0:02:18]} 13. cxd5 {[%clk 0:01:50.1]} 13... Nxd5 {[%clk 0:02:12.1]} 14.
Qb3 {[%clk 0:01:47.8]} 14... Rd8 {[%clk 0:02:05.6]} 15. N2f3 {[%clk 0:01:39.5]}
15... h6 {[%clk 0:01:57.8]} 16. Rd1 {[%clk 0:01:32.3]} 16... Na6 {[%clk
0:01:56.4]} 17. a3 {[%clk 0:01:16]} 17... Nc5 {[%clk 0:01:55.2]} 18. Qa2 {[%clk
0:01:15.9]} 18... Bf6 {[%clk 0:01:52.1]} 19. Bd2 {[%clk 0:01:04.6]} 19... Nd3
{[%clk 0:01:31.3]} 20. Qb3 {[%clk 0:00:54.9]} 20... Nc5 {[%clk 0:01:27.5]} 21.
Qa2 {[%clk 0:00:54.5]} 21... Qg4 {[%clk 0:01:19.6]} 22. h3 {[%clk 0:00:53.3]}
22... Qg6 {[%clk 0:01:18.8]} 23. b4 {[%clk 0:00:43.1]} 23... Ne4 {[%clk
0:01:13.2]} 24. Rac1 {[%clk 0:00:39.1]} 24... Rac8 {[%clk 0:01:08.7]} 25. Rxc8
{[%clk 0:00:32.9]} 25... Rxc8 {[%clk 0:01:08.8]} 26. Qb3 {[%clk 0:00:20.6]}
26... Ndc3 {[%clk 0:01:00.2]} 27. Bxc3 {[%clk 0:00:19.1]} 27... Nxc3 {[%clk
0:00:51.9]} 28. Rc1 {[%clk 0:00:15.2]} 28... Bxf3 {[%clk 0:00:31]} 29. Rxc3
{[%clk 0:00:06.2]} 29... Rxc3 {[%clk 0:00:31.4]} 30. Qxc3 {[%clk 0:00:06.8]}
30... Bxg2 {[%clk 0:00:31.9]} 31. Kxg2 {[%clk 0:00:01.6]} 31... Qe4+ {[%clk
0:00:32.2]} 0-1

[Event "Early-Titled-Tuesday-Blitz-July-09-2024"]
[Site "Chess.com"]
[Date "2024.07.09"]
[Round "2"]
[White "SuperGPatzer"]
[Black "tusplingher"]
[Result "0-1"]
[WhiteElo "2151"]
[BlackElo "2690"]
[TimeControl "180+1"]
[EndTime "8:17:05 PDT"]
[Termination "tusplingher won by resignation"]

1. g4 {[%clk 0:03:00.9]} 1... d5 {[%clk 0:02:59.8]} 2. h3 {[%clk 0:03:00.6]}
2... e5 {[%clk 0:02:59.6]} 3. c4 {[%clk 0:03:00.3]} 3... dxc4 {[%clk 0:02:58.5]}
4. Bg2 {[%clk 0:02:59.8]} 4... c6 {[%clk 0:02:57.5]} 5. Nc3 {[%clk 0:02:51.3]}
5... Be6 {[%clk 0:02:56.6]} 6. Nf3 {[%clk 0:02:49.3]} 6... Nd7 {[%clk
0:02:56.4]} 7. d4 {[%clk 0:02:48.4]} 7... cxd3 {[%clk 0:02:55.6]} 8. Qxd3 {[%clk
0:02:48.2]} 8... Ngf6 {[%clk 0:02:48.4]} 9. Be3 {[%clk 0:02:46.3]} 9... Nd5
{[%clk 0:02:47.4]} 10. O-O-O {[%clk 0:02:45.7]} 10... Be7 {[%clk 0:02:44.6]} 11.
g5 {[%clk 0:02:15.6]} 11... Qa5 {[%clk 0:02:38]} 12. Kb1 {[%clk 0:01:58.3]}
12... Nxc3+ {[%clk 0:02:35.1]} 13. Qxc3 {[%clk 0:01:57.9]} 13... Bxa2+ {[%clk
0:02:31]} 14. Kc1 {[%clk 0:01:51]} 14... Qxc3+ {[%clk 0:02:30.3]} 15. bxc3
{[%clk 0:01:50.4]} 15... Be6 {[%clk 0:02:27.5]} 16. Rd2 {[%clk 0:01:43.1]} 16...
O-O {[%clk 0:02:18.6]} 17. Rhd1 {[%clk 0:01:42]} 17... Nc5 {[%clk 0:02:18.1]}
18. Bxc5 {[%clk 0:01:20.7]} 18... Bxc5 {[%clk 0:02:17.8]} 19. e3 {[%clk
0:01:16.7]} 19... f6 {[%clk 0:02:10.5]} 20. gxf6 {[%clk 0:01:03.8]} 20... gxf6
{[%clk 0:02:11.4]} 21. Nh4 {[%clk 0:00:57.4]} 21... a5 {[%clk 0:02:06.2]} 22.
Be4 {[%clk 0:00:43.6]} 22... f5 {[%clk 0:01:58.9]} 23. Bc2 {[%clk 0:00:34.7]}
23... a4 {[%clk 0:01:57.2]} 24. e4 {[%clk 0:00:28.7]} 24... f4 {[%clk
0:01:53.5]} 25. Nf5 {[%clk 0:00:28]} 25... a3 {[%clk 0:01:42.9]} 26. Kb1 {[%clk
0:00:18.3]} 26... Ra6 {[%clk 0:01:31.3]} 27. Ka1 {[%clk 0:00:17.5]} 27... Rb6
{[%clk 0:01:28.1]} 28. Rg1+ {[%clk 0:00:16.3]} 28... Kh8 {[%clk 0:01:26.4]} 29.
Rg5 {[%clk 0:00:15.8]} 29... Rb2 {[%clk 0:01:12.5]} 30. Ng7 {[%clk 0:00:14.2]}
30... Bb3 {[%clk 0:01:03.4]} 31. Bxb3 {[%clk 0:00:08.7]} 31... Rxd2 {[%clk
0:00:59.1]} 32. Ne6 {[%clk 0:00:09.3]} 32... Be7 {[%clk 0:00:55.4]} 33. Nxf8
{[%clk 0:00:08.6]} 33... Bxg5 {[%clk 0:00:53.3]} 34. Ne6 {[%clk 0:00:08.9]}
34... Bf6 {[%clk 0:00:52.2]} 35. Nc5 {[%clk 0:00:08.4]} 35... Rxf2 {[%clk
0:00:51.1]} 36. Nd7 {[%clk 0:00:08.8]} 36... Kg7 {[%clk 0:00:50.2]} 37. Nc5
{[%clk 0:00:04.2]} 37... f3 {[%clk 0:00:46.7]} 38. Nxb7 {[%clk 0:00:03.6]} 38...
Rb2 {[%clk 0:00:45.4]} 39. Nd6 {[%clk 0:00:04.5]} 39... Rxb3 {[%clk 0:00:44.4]}
40. Ne8+ {[%clk 0:00:05.4]} 40... Kf7 {[%clk 0:00:44.4]} 41. Nxf6 {[%clk
0:00:06.3]} 41... Kxf6 {[%clk 0:00:44.6]} 0-1

[Event "Early-Titled-Tuesday-Blitz-July-09-2024"]
[Site "Chess.com"]
[Date "2024.07.09"]
[Round "2"]
[White "AlexZambrano"]
[Black "burbur555"]
[Result "0-1"]
[WhiteElo "2386"]
[BlackElo "2742"]
[TimeControl "180+1"]
[EndTime "8:17:05 PDT"]
[Termination "burbur555 won on time"]

1. e4 {[%clk 0:03:00.9]} 1... c6 {[%clk 0:03:00.9]} 2. d4 {[%clk 0:02:56.6]}
2... d5 {[%clk 0:03:01.4]} 3. exd5 {[%clk 0:02:57.5]} 3... cxd5 {[%clk
0:03:01.1]} 4. c4 {[%clk 0:02:58.4]} 4... Nf6 {[%clk 0:03:00.8]} 5. Nc3 {[%clk
0:02:58.7]} 5... Nc6 {[%clk 0:03:00.5]} 6. Bg5 {[%clk 0:02:58.7]} 6... e6 {[%clk
0:02:45.8]} 7. c5 {[%clk 0:02:54.1]} 7... Be7 {[%clk 0:02:44.8]} 8. Nf3 {[%clk
0:02:53.9]} 8... O-O {[%clk 0:02:43.9]} 9. Bb5 {[%clk 0:02:54.3]} 9... Ne4
{[%clk 0:02:43.1]} 10. Bf4 {[%clk 0:02:46.3]} 10... Bd7 {[%clk 0:02:37]} 11. Rc1
{[%clk 0:02:42.1]} 11... Nxc3 {[%clk 0:02:32.5]} 12. Rxc3 {[%clk 0:02:30]} 12...
Bf6 {[%clk 0:02:31.8]} 13. Bxc6 {[%clk 0:02:28.8]} 13... Bxc6 {[%clk 0:02:30.3]}
14. O-O {[%clk 0:02:29.1]} 14... Bb5 {[%clk 0:02:24.4]} 15. Re1 {[%clk
0:02:27.2]} 15... h6 {[%clk 0:02:09.9]} 16. a4 {[%clk 0:02:23.9]} 16... Bd7
{[%clk 0:02:07.3]} 17. Ne5 {[%clk 0:02:17.7]} 17... Qe8 {[%clk 0:02:05.8]} 18.
Nxd7 {[%clk 0:02:07.1]} 18... Qxd7 {[%clk 0:02:05.2]} 19. b4 {[%clk 0:02:06.3]}
19... a6 {[%clk 0:02:04]} 20. Qb3 {[%clk 0:02:01.5]} 20... Bxd4 {[%clk
0:02:02.6]} 21. Rg3 {[%clk 0:01:55.3]} 21... Kh8 {[%clk 0:02:00.4]} 22. Bd6
{[%clk 0:01:37.1]} 22... Rfe8 {[%clk 0:01:57.5]} 23. b5 {[%clk 0:01:35.2]} 23...
axb5 {[%clk 0:01:53.5]} 24. axb5 {[%clk 0:01:36.1]} 24... Rec8 {[%clk
0:01:50.9]} 25. Qf3 {[%clk 0:01:02.3]} 25... Bxc5 {[%clk 0:01:30.9]} 26. Be5
{[%clk 0:01:01.3]} 26... Bf8 {[%clk 0:01:31.4]} 27. Qh5 {[%clk 0:00:52.1]} 27...
f6 {[%clk 0:01:27.4]} 28. Bf4 {[%clk 0:00:42.4]} 28... e5 {[%clk 0:01:18.2]} 29.
Bd2 {[%clk 0:00:38]} 29... Ra2 {[%clk 0:01:13.6]} 30. Rd3 {[%clk 0:00:16.8]}
30... Qxb5 {[%clk 0:01:02.6]} 31. Qg6 {[%clk 0:00:10.9]} 31... Qe8 {[%clk
0:00:56.9]} 32. Qf5 {[%clk 0:00:06.3]} 32... d4 {[%clk 0:00:39.5]} 33. Rg3
{[%clk 0:00:05.2]} 33... Rc6 {[%clk 0:00:36.7]} 34. Bxh6 {[%clk 0:00:05.1]}
34... gxh6 {[%clk 0:00:34.6]} 35. Rg6 {[%clk 0:00:03.4]} 35... Qf7 {[%clk
0:00:32.7]} 36. Rg3 {[%clk 0:00:01.2]} 36... Bg7 {[%clk 0:00:31]} 0-1

[Event "Early-Titled-Tuesday-Blitz-July-09-2024"]
[Site "Chess.com"]
[Date "2024.07.09"]
[Round "2"]
[White "EternalNight8"]
[Black "Macron20hTF1"]
[Result "1-0"]
[WhiteElo "2382"]
[BlackElo "2558"]
[TimeControl "180+1"]
[EndTime "8:17:06 PDT"]
[Termination "EternalNight8 won by resignation"]

1. d4 {[%clk 0:03:00.9]} 1... g6 {[%clk 0:03:00.4]} 2. e4 {[%clk 0:03:00.1]}
2... Bg7 {[%clk 0:03:00.9]} 3. Nc3 {[%clk 0:03:00.7]} 3... d6 {[%clk 0:03:00.8]}
4. f4 {[%clk 0:03:01.3]} 4... a6 {[%clk 0:03:01.3]} 5. Nf3 {[%clk 0:02:56.5]}
5... b5 {[%clk 0:02:58.8]} 6. Bd3 {[%clk 0:02:56.3]} 6... Nd7 {[%clk 0:02:57.1]}
7. a4 {[%clk 0:02:52.9]} 7... b4 {[%clk 0:02:56.8]} 8. Ne2 {[%clk 0:02:53.2]}
8... c5 {[%clk 0:02:56.9]} 9. c3 {[%clk 0:02:53.5]} 9... bxc3 {[%clk 0:02:55.8]}
10. bxc3 {[%clk 0:02:53.3]} 10... Qc7 {[%clk 0:02:55.9]} 11. Be3 {[%clk
0:02:49.5]} 11... Ngf6 {[%clk 0:02:55.7]} 12. O-O {[%clk 0:02:26.8]} 12... Bb7
{[%clk 0:02:54.6]} 13. e5 {[%clk 0:02:11.1]} 13... Nd5 {[%clk 0:02:12.2]} 14.
Bd2 {[%clk 0:02:11]} 14... c4 {[%clk 0:02:12.7]} 15. Bc2 {[%clk 0:02:01.7]}
15... e6 {[%clk 0:02:12.6]} 16. Ng3 {[%clk 0:01:50.6]} 16... O-O {[%clk
0:01:43.6]} 17. Ne4 {[%clk 0:01:50.6]} 17... dxe5 {[%clk 0:01:36.9]} 18. fxe5
{[%clk 0:01:51.5]} 18... h6 {[%clk 0:01:27.2]} 19. Nd6 {[%clk 0:01:45.4]} 19...
f5 {[%clk 0:01:18.6]} 20. exf6 {[%clk 0:01:13.9]} 20... Qxd6 {[%clk 0:01:18.4]}
21. fxg7 {[%clk 0:01:14.7]} 21... Kxg7 {[%clk 0:01:19]} 22. Bxg6 {[%clk
0:01:10.6]} 22... Kxg6 {[%clk 0:01:14.2]} 23. Nh4+ {[%clk 0:00:55.5]} 23... Kh7
{[%clk 0:00:47.8]} 24. Qb1+ {[%clk 0:00:54.4]} 24... Kh8 {[%clk 0:00:43.9]} 25.
Ng6+ {[%clk 0:00:54.1]} 25... Kg8 {[%clk 0:00:44]} 26. Nxf8 {[%clk 0:00:53.3]}
26... Rxf8 {[%clk 0:00:42.1]} 27. Rxf8+ {[%clk 0:00:46.2]} 27... Qxf8 {[%clk
0:00:31.3]} 28. Qxb7 {[%clk 0:00:43.3]} 28... Qg7 {[%clk 0:00:29.4]} 29. Qc8+
{[%clk 0:00:38.7]} 29... Kh7 {[%clk 0:00:28.3]} 30. Qxc4 {[%clk 0:00:37.4]}
30... N7f6 {[%clk 0:00:26.6]} 31. Qd3+ {[%clk 0:00:37]} 31... Kg8 {[%clk
0:00:26.8]} 32. c4 {[%clk 0:00:37.1]} 32... Ne7 {[%clk 0:00:25.8]} 33. Rf1
{[%clk 0:00:35.2]} 33... Nf5 {[%clk 0:00:26.1]} 34. d5 {[%clk 0:00:33.1]} 34...
Nh4 {[%clk 0:00:12.7]} 35. Qe2 {[%clk 0:00:33.1]} 35... exd5 {[%clk 0:00:09.7]}
36. cxd5 {[%clk 0:00:33.4]} 36... Qa7+ {[%clk 0:00:08.9]} 37. Be3 {[%clk
0:00:32]} 37... Qe7 {[%clk 0:00:08.8]} 38. d6 {[%clk 0:00:29.2]} 38... Qxd6
{[%clk 0:00:08.5]} 39. Qc4+ {[%clk 0:00:29]} 39... Kg7 {[%clk 0:00:08.6]} 40.
Qxh4 {[%clk 0:00:28.8]} 1-0

[Event "Early-Titled-Tuesday-Blitz-July-09-2024"]
[Site "Chess.com"]
[Date "2024.07.09"]
[Round "2"]
[White "montyotto"]
[Black "marvinguevara"]
[Result "1-0"]
[WhiteElo "2428"]
[BlackElo "2043"]
[TimeControl "180+1"]
[EndTime "8:17:08 PDT"]
[Termination "montyotto won on time"]

1. e4 {[%clk 0:03:00.9]} 1... c5 {[%clk 0:02:59.1]} 2. Nc3 {[%clk 0:03:00.4]}
2... Nc6 {[%clk 0:02:58.9]} 3. f4 {[%clk 0:03:00]} 3... g6 {[%clk 0:02:57.5]} 4.
Nf3 {[%clk 0:02:59.6]} 4... Bg7 {[%clk 0:02:56.3]} 5. Bc4 {[%clk 0:02:59.6]}
5... e6 {[%clk 0:02:55.4]} 6. f5 {[%clk 0:02:59.9]} 6... Nge7 {[%clk 0:02:52.2]}
7. fxe6 {[%clk 0:02:59.6]} 7... fxe6 {[%clk 0:02:50.8]} 8. d3 {[%clk 0:02:59.1]}
8... d5 {[%clk 0:02:40.8]} 9. Bb3 {[%clk 0:02:58.7]} 9... b5 {[%clk 0:02:35.1]}
10. O-O {[%clk 0:02:57.8]} 10... c4 {[%clk 0:02:33.7]} 11. dxc4 {[%clk 0:02:57]}
11... dxc4 {[%clk 0:02:34]} 12. Qxd8+ {[%clk 0:02:54.5]} 12... Kxd8 {[%clk
0:02:33.7]} 13. Nxb5 {[%clk 0:02:53.5]} 13... cxb3 {[%clk 0:02:23.6]} 14. axb3
{[%clk 0:02:52.4]} 14... Bd7 {[%clk 0:02:13.4]} 15. Rd1 {[%clk 0:02:16.8]} 15...
Rf8 {[%clk 0:02:00.7]} 16. c3 {[%clk 0:01:44.6]} 16... a6 {[%clk 0:01:18.9]} 17.
Be3 {[%clk 0:01:11.9]} 17... Rb8 {[%clk 0:01:13]} 18. c4 {[%clk 0:00:57.4]}
18... axb5 {[%clk 0:00:52.5]} 19. Bc5 {[%clk 0:00:55.1]} 19... Rxf3 {[%clk
0:00:27.3]} 20. gxf3 {[%clk 0:00:49.9]} 20... Be5 {[%clk 0:00:27]} 21. Rd2
{[%clk 0:00:32.3]} 21... Bf4 {[%clk 0:00:18.3]} 22. Rd3 {[%clk 0:00:27.8]} 22...
Ne5 {[%clk 0:00:15.8]} 23. Rc3 {[%clk 0:00:21.1]} 23... b4 {[%clk 0:00:14]} 24.
Rc2 {[%clk 0:00:18.7]} 24... N5c6 {[%clk 0:00:11.1]} 25. Rd1 {[%clk 0:00:16.4]}
25... Kc7 {[%clk 0:00:08.1]} 26. Rd3 {[%clk 0:00:13.4]} 26... Nc8 {[%clk
0:00:05]} 27. Kf2 {[%clk 0:00:12.3]} 27... g5 {[%clk 0:00:03]} 28. Re2 {[%clk
0:00:11.7]} 1-0

[Event "Early-Titled-Tuesday-Blitz-July-09-2024"]
[Site "Chess.com"]
[Date "2024.07.09"]
[Round "2"]
[White "ImportedItalianMaple"]
[Black "ilya2700"]
[Result "1-0"]
[WhiteElo "2468"]
[BlackElo "2219"]
[TimeControl "180+1"]
[EndTime "8:17:09 PDT"]
[Termination "ImportedItalianMaple won on time"]

1. d4 {[%clk 0:02:57.5]} 1... d5 {[%clk 0:03:00]} 2. Nf3 {[%clk 0:02:56.9]} 2...
e6 {[%clk 0:03:00.4]} 3. c4 {[%clk 0:02:54.7]} 3... c5 {[%clk 0:02:59.5]} 4.
cxd5 {[%clk 0:02:54]} 4... exd5 {[%clk 0:02:53.3]} 5. g3 {[%clk 0:02:54.4]} 5...
Nc6 {[%clk 0:02:47.4]} 6. Bg2 {[%clk 0:02:54.2]} 6... Nf6 {[%clk 0:02:47.4]} 7.
O-O {[%clk 0:02:53.8]} 7... Bd6 {[%clk 0:02:47.6]} 8. dxc5 {[%clk 0:02:53.7]}
8... Bxc5 {[%clk 0:02:47.2]} 9. a3 {[%clk 0:02:54.2]} 9... O-O {[%clk
0:02:46.5]} 10. b4 {[%clk 0:02:54.2]} 10... Bb6 {[%clk 0:02:47.2]} 11. Nc3
{[%clk 0:02:53.9]} 11... Bg4 {[%clk 0:02:43.7]} 12. Bg5 {[%clk 0:02:50.3]} 12...
h6 {[%clk 0:02:42.5]} 13. Bxf6 {[%clk 0:02:49.9]} 13... Qxf6 {[%clk 0:02:43.4]}
14. Nxd5 {[%clk 0:02:50.3]} 14... Qd8 {[%clk 0:02:41]} 15. Nxb6 {[%clk
0:02:49.9]} 15... Qxb6 {[%clk 0:02:41.9]} 16. Rc1 {[%clk 0:01:48.3]} 16... Rfe8
{[%clk 0:02:39.1]} 17. Re1 {[%clk 0:01:41.5]} 17... Rad8 {[%clk 0:02:36.5]} 18.
Qb3 {[%clk 0:01:37.3]} 18... Bxf3 {[%clk 0:02:19.1]} 19. Qxf3 {[%clk 0:01:37.8]}
19... Nd4 {[%clk 0:02:17.2]} 20. Qd3 {[%clk 0:01:37.9]} 20... Nxe2+ {[%clk
0:02:10.3]} 21. Qxe2 {[%clk 0:01:35.7]} 21... Rxe2 {[%clk 0:02:09.9]} 22. Rxe2
{[%clk 0:01:36.6]} 22... Qa6 {[%clk 0:02:07.1]} 23. Re3 {[%clk 0:01:35.9]} 23...
Qa4 {[%clk 0:02:02.4]} 24. Bxb7 {[%clk 0:01:32.5]} 24... Rd1+ {[%clk 0:01:57.5]}
25. Rxd1 {[%clk 0:01:33]} 25... Qxd1+ {[%clk 0:01:58.4]} 26. Kg2 {[%clk
0:01:33.5]} 26... g6 {[%clk 0:01:58.5]} 27. h4 {[%clk 0:01:28.6]} 27... h5
{[%clk 0:01:56.4]} 28. Bf3 {[%clk 0:01:24.1]} 28... Qd7 {[%clk 0:01:55.1]} 29.
Re5 {[%clk 0:01:14]} 29... Kg7 {[%clk 0:01:53]} 30. Ra5 {[%clk 0:01:13.2]} 30...
Qc7 {[%clk 0:01:40.7]} 31. a4 {[%clk 0:01:06.7]} 31... Qc3 {[%clk 0:01:29.1]}
32. Rb5 {[%clk 0:01:00.4]} 32... Qd4 {[%clk 0:01:14.1]} 33. Rb7 {[%clk
0:00:57.2]} 33... Kf6 {[%clk 0:01:10.7]} 34. a5 {[%clk 0:00:49.9]} 34... a6
{[%clk 0:00:57.4]} 35. b5 {[%clk 0:00:38.6]} 35... axb5 {[%clk 0:00:58.3]} 36.
a6 {[%clk 0:00:38.9]} 36... Qa4 {[%clk 0:00:46.8]} 37. a7 {[%clk 0:00:39.2]}
37... b4 {[%clk 0:00:47.2]} 38. Rb6+ {[%clk 0:00:39.1]} 1-0